fUSD/lending_fUSD_20250515
["ID","MTS","AMOUNT","RATE_DAILY","PERIOD"]
[361208168,1747341038249,-150.0,0.00010787,2]
[361208169,1747341038258,-150.0,0.00010787,2]
[361208170,1747341038267,-150.0,0.00010792,2]
[361208171,1747341038276,-150.0,0.00010792,2]
[361208173,1747341038286,-249.98523734,0.00010798,2]
[361208175,1747341038295,-309.63301915,0.00010798,2]
[361208177,1747341038304,-150.0,0.00010803,2]
[361208179,1747341038313,-150.0,0.00010805,2]
[361208181,1747341038323,-249.98523734,0.00010809,2]
[361208183,1747341038332,-309.63301915,0.00010809,2]
[361208185,1747341038342,-150.0,0.00010812,2]
[361208187,1747341038352,-150.0,0.00010813,2]
[361208189,1747341038361,-150.0,0.00010818,2]
[361208191,1747341038371,-249.98523734,0.0001082,2]
[361208193,1747341038381,-309.63301915,0.0001082,2]
[361208195,1747341038390,-150.0,0.0001082,2]
[361208197,1747341038399,-150.0,0.00010825,2]
[361208199,1747341038409,-249.98523734,0.00010831,2]
[361208201,1747341038419,-309.63301915,0.00010831,2]
[361208203,1747341038429,-150.0,0.00010831,2]
[361208205,1747341038438,-150.0,0.00010836,2]
[361208207,1747341038447,-150.0,0.00010836,2]
[361208209,1747341038458,-249.98523734,0.00010842,2]
[361208211,1747341038467,-309.63301915,0.00010842,2]
[361208213,1747341038476,-150.0,0.00010844,2]
[361208215,1747341038486,-249.98523734,0.00010853,2]
[361208217,1747341038495,-309.63301915,0.00010853,2]
[361208219,1747341038505,-150.0,0.00010853,2]
[361208221,1747341038515,-150.0,0.00010857,2]
[361208223,1747341038524,-150.0,0.00010857,2]
[361208225,1747341038533,-150.0,0.00010861,2]
[361208227,1747341038543,-249.98523734,0.00010864,2]
[361208229,1747341038552,-309.63301915,0.00010864,2]
[361208231,1747341038561,-150.0,0.0001087,2]
[361208233,1747341038571,-150.0,0.0001087,2]
[361208235,1747341038580,-150.0,0.00010871,2]
[361208237,1747341038590,-249.98523734,0.00010875,2]
[361208239,1747341038599,-309.63301915,0.00010875,2]
[361208241,1747341038609,-150.0,0.00010883,2]
[361208243,1747341038618,-249.98523734,0.00010886,2]
[361208245,1747341038627,-309.63301915,0.00010886,2]
[361208247,1747341038637,-150.0,0.00010886,2]
[361208249,1747341038646,-150.0,0.00010886,2]
[361208251,1747341038656,-150.0,0.00010886,2]
[361208253,1747341038665,-150.0,0.00010886,2]
[361208255,1747341038677,-150.0,0.00010889,2]
[361208257,1747341038687,-150.0,0.00010896,2]
[361208260,1747341038697,-249.98523734,0.00010898,2]
[361208261,1747341038707,-309.63301915,0.00010898,2]
[361208263,1747341038716,-420.71103696,0.000109,2]
[361208265,1747341038725,-255.34273131,0.000109,2]
[361208267,1747341038734,-218.36708554,0.000109,2]
[361208269,1747341038744,-171.5450196,0.000109,2]
[361208271,1747341038753,-196.22689545,0.000109,2]
[361208273,1747341038762,-702.57422617,0.000109,2]
[361208275,1747341038771,-750.93533326,0.000109,2]
[361208277,1747341038782,-150.0,0.00010903,2]
[361208279,1747341038791,-249.98523734,0.00010909,2]
[361208281,1747341038803,-309.63301915,0.00010909,2]
[361208284,1747341038817,-150.0,0.00010909,2]
[361208286,1747341038826,-150.0,0.00010911,2]
[361208288,1747341038836,-249.98523734,0.0001092,2]
[361208290,1747341038846,-309.63301915,0.0001092,2]
[361208292,1747341038855,-150.0,0.0001092,2]
[361208294,1747341038865,-150.0,0.00010922,2]
[361208296,1747341038874,-150.0,0.00010922,2]
[361208298,1747341038885,-150.0,0.00010928,2]
[361208300,1747341038895,-249.98523734,0.00010931,2]
[361208302,1747341038905,-309.63301915,0.00010931,2]
[361208304,1747341038914,-200.0,0.00010931,2]
[361208306,1747341038923,-250.0,0.00010931,2]
[361208308,1747341038932,-150.0,0.00010935,2]
[361208310,1747341038942,-150.0,0.00010936,2]
[361208312,1747341038953,-150.0,0.00010936,2]
[361208314,1747341038962,-249.98523734,0.00010942,2]
[361208316,1747341038973,-309.63301915,0.00010942,2]
[361208318,1747341038983,-150.0,0.00010948,2]
[361208320,1747341038992,-249.98523734,0.00010953,2]
[361208322,1747341039002,-309.63301915,0.00010953,2]
[361208324,1747341039011,-150.0,0.00010953,2]
[361208326,1747341039021,-150.0,0.00010954,2]
[361208328,1747341039031,-200.81,0.00010959,2]
[361208330,1747341039040,-150.0,0.00010959,2]
[361208332,1747341039050,-150.0,0.0001096,2]
[361208334,1747341039059,-150.0,0.00010961,2]
[361208336,1747341039068,-249.98523734,0.00010964,2]
[361208338,1747341039078,-309.63301915,0.00010964,2]
[361208340,1747341039087,-150.0,0.0001097,2]
[361208342,1747341039096,-520.54168207,0.00010973,2]
[361208344,1747341039105,-500.0,0.00010973,2]
[361208346,1747341039115,-500.0,0.00010973,2]
[361208348,1747341039124,-500.0,0.00010973,2]
[361208350,1747341039134,-500.0,0.00010973,2]
[361208352,1747341039145,-505.279035,0.00010973,2]
[361208354,1747341039154,-500.0,0.00010973,2]
[361208356,1747341039163,-500.0,0.00010973,2]
[361208358,1747341039172,-500.0,0.00010973,2]
[361208360,1747341039181,-500.0,0.00010973,2]
[361208362,1747341039190,-500.0,0.00010973,2]
[361208364,1747341039199,-461.48676589,0.00010973,2]
[361208366,1747341039211,-150.0,0.00010973,2]
[361208368,1747341039220,-249.98523734,0.00010975,2]
[361208370,1747341039230,-309.63301915,0.00010975,2]
[361208372,1747341039239,-214.48695005,0.00010986,2]
[361208374,1747341039248,-249.98523734,0.00010986,2]
[361208376,1747341039258,-309.63301915,0.00010986,2]
[361208378,1747341039267,-151.16704547,0.00010986,2]
[361208380,1747341039277,-151.728563,0.00010986,2]
[361208382,1747341039287,-171.6919141,0.00010986,2]
[361208384,1747341039296,-151.35130937,0.00010986,2]
[361208386,1747341039305,-186.83954663,0.00010986,2]
[361208388,1747341039315,-150.03740194,0.00010986,2]
[361208390,1747341039324,-155.3013129,0.00010986,2]
[361208392,1747341039333,-199.52795898,0.00010986,2]
[361208394,1747341039343,-200.0,0.00010986,2]
[361208396,1747341039352,-250.0,0.00010986,2]
[361208398,1747341039361,-200.0,0.00010986,2]
[361208400,1747341039370,-250.0,0.00010986,2]
[361208403,1747341039380,-1680.0,0.00010997,2]
[361208406,1747341039389,-300.0,0.00010999,2]
[361208408,1747341039398,-300.0,0.00010999,2]
[361208411,1747341039407,-540.02307691,0.00011,2]
[361208414,1747341039417,-15110.95640762,0.00011,2]
[361208416,1747341039430,-1660.7,0.00011,2]
[361208487,1747341040065,-401.64443139,0.00011,2]
[361208489,1747341040077,-6193.5005,0.00011,2]
[361208492,1747341040088,-3616.99999997,0.00011,2]
[361208494,1747341040099,-9196.32597638,0.00011,2]
[361208497,1747341040115,-748.0000006,0.00011,2]
[361208509,1747341040223,-1785.78816,0.00011,2]
[361208511,1747341040234,-1562.60042115,0.00011,2]
[361208521,1747341040402,793.08,9.895e-05,2]
[361208605,1747341041212,-32379.5387111,0.00011,2]
[361208608,1747341041223,-1112.21660147,0.00011,2]
[361208680,1747341041903,-26820.0,0.00011,2]
[361208690,1747341041982,-6150.1933731,0.00011,2]
[361208692,1747341041993,-2540.11089724,0.00011,2]
[361208701,1747341042063,-282.1988674,0.00011,2]
[361208955,1747341044222,-9933.12087803,0.00011,2]
[361208963,1747341044280,-10443.74338756,0.00011,2]
[361208965,1747341044292,-472.10988083,0.00011,2]
[361208967,1747341044303,-1218.68246422,0.00011,2]
[361208969,1747341044313,-1012.29540611,0.00011,2]
[361208973,1747341044336,-1104.7317,0.00011,2]
[361208981,1747341044406,-9169.72,0.00011,2]
[361209104,1747341045540,-401.663999,0.00011,2]
[361209105,1747341045554,-8750.59092677,0.00011,2]
[361209108,1747341045602,-684.48360666,0.00011,2]
[361209138,1747341045927,-2458.54353446,0.00011,2]
[361209139,1747341045941,-71477.80069288,0.00011,2]
[361209140,1747341045953,-215681.31458803,0.00011,2]
[361209141,1747341045965,-5777.95899999,0.00011,2]
[361209143,1747341046069,-5570.45453968,0.00011,2]
[361209144,1747341046090,-260556.4128172,0.00011,2]
[361209145,1747341046099,-650252.17295134,0.00011,2]
[361209191,1747341413858,-221.2922797,0.00010144,2]
[361209192,1747341415999,-370.47961566,0.00010144,2]
[361209193,1747341419262,-336.54810464,0.00010144,2]
[361209194,1747341449649,1736.8,8.226e-05,2]
[361209195,1747341623934,160.55,0.00021945,30]
[361209198,1747341773954,-171.80959781,0.00010046,2]
[361209199,1747341775431,-181.56026312,0.00010046,2]
[361209200,1747341777468,-44.89013907,0.00010046,2]
[361209201,1747341777491,-165.39,0.00010086,2]
[361209202,1747341777513,-89.71986093,0.00010115,2]
[361209203,1747341910897,150.0,9.888e-05,2]
[361209204,1747341911640,-150.0,9.933e-05,2]
[361209205,1747341912617,150.0,9.888e-05,2]
[361209206,1747341915090,150.0,9.888e-05,2]
[361209207,1747341915133,150.0,9.906e-05,2]
[361209208,1747341919646,150.0,9.888e-05,2]
[361209209,1747341921567,150.0,9.888e-05,2]
[361209210,1747341922770,150.0,9.888e-05,2]
[361209211,1747341936678,150.0,9.888e-05,2]
[361209213,1747341989281,162.01,9.393e-05,2]
[361209214,1747341989535,162.01,9.417e-05,2]
[361209215,1747341989736,162.01,9.44e-05,2]
[361209276,1747342231957,-150.0,9.922e-05,2]
[361209277,1747342231966,-200.0,9.923e-05,2]
[361209278,1747342231976,-250.0,9.923e-05,2]
[361209279,1747342231985,-200.0,9.923e-05,2]
[361209280,1747342231994,-150.0,9.924e-05,2]
[361209281,1747342232004,-250.0,9.934e-05,2]
[361209282,1747342232013,-150.0,9.943e-05,2]
[361209283,1747342232022,-150.0,9.956e-05,2]
[361209284,1747342232032,-150.0,9.961e-05,2]
[361209285,1747342232041,-150.0,9.966e-05,2]
[361209286,1747342232050,-150.0,9.979e-05,2]
[361209287,1747342232059,-150.0,9.979e-05,2]
[361209288,1747342232069,-150.0,9.991e-05,2]
[361209289,1747342232078,-150.0,9.998e-05,2]
[361209290,1747342232087,-176.22081214,0.0001,2]
[361209291,1747342232097,-150.0,0.00010016,2]
[361209292,1747342232107,-150.0,0.00010025,2]
[361209293,1747342232116,-150.0,0.00010025,2]
[361209294,1747342232126,-150.0,0.00010034,2]
[361209295,1747342232135,-150.0,0.00010045,2]
[361209296,1747342232145,-150.0,0.00010052,2]
[361209297,1747342232155,-150.0,0.00010059,2]
[361209299,1747342232164,-150.0,0.00010071,2]
[361209301,1747342232173,-150.0,0.00010071,2]
[361209303,1747342232182,-150.0,0.00010089,2]
[361209305,1747342232191,-150.0,0.00010094,2]
[361209307,1747342232201,-150.0,0.00010107,2]
[361209309,1747342232212,-150.0,0.00010117,2]
[361209312,1747342232222,-300.0,0.00010123,2]
[361209313,1747342232232,-150.0,0.00010123,2]
[361209315,1747342232243,-150.0,0.00010126,2]
[361209317,1747342232252,-150.0,0.00010128,2]
[361209319,1747342232262,-300.0,0.00010128,2]
[361209321,1747342232271,-1200.0,0.00010128,2]
[361209323,1747342232282,-150.0,0.0001013,2]
[361209325,1747342232292,-250.0,0.00010143,2]
[361209328,1747342232302,-150.0,0.00010144,2]
[361209329,1747342232311,-12444.453261,0.00010145,2]
[361209339,1747342232397,-429.81486491,0.00010145,2]
[361209356,1747342237747,-533.56014313,0.00010145,2]
[361209357,1747342237759,-523.05,0.00010145,2]
[361209358,1747342237801,-9969.12173096,0.00010145,2]
[361209359,1747342237810,-412.3,0.00010149,2]
[361209360,1747342237820,-150.0,0.00010162,2]
[361209361,1747342237830,-150.0,0.00010162,2]
[361209362,1747342237839,-150.0,0.00010162,2]
[361209363,1747342237848,-150.0,0.00010162,2]
[361209364,1747342237858,-150.0,0.00010181,2]
[361209365,1747342237868,-150.0,0.00010197,2]
[361209366,1747342237877,-150.0,0.00010199,2]
[361209367,1747342237886,-150.0,0.00010202,2]
[361209368,1747342237895,-150.0,0.00010208,2]
[361209369,1747342237905,-150.0,0.00010217,2]
[361209370,1747342237914,-150.0,0.00010231,2]
[361209371,1747342237924,-150.0,0.00010236,2]
[361209372,1747342237933,-150.0,0.00010254,2]
[361209373,1747342237943,-150.0,0.00010254,2]
[361209374,1747342237952,-150.0,0.00010265,2]
[361209375,1747342237961,-150.0,0.00010272,2]
[361209376,1747342237970,-150.0,0.0001028,2]
[361209377,1747342237979,-150.0,0.00010291,2]
[361209378,1747342237989,-150.0,0.000103,2]
[361209379,1747342237998,-150.0,0.000103,2]
[361209380,1747342238007,-150.0,0.00010309,2]
[361209381,1747342238016,-150.0,0.00010327,2]
[361209382,1747342238026,-150.0,0.00010334,2]
[361209383,1747342238035,-150.0,0.00010345,2]
[361209384,1747342238044,-150.0,0.00010345,2]
[361209385,1747342238053,-236.12,0.00010347,2]
[361209386,1747342238062,-150.0,0.00010359,2]
[361209387,1747342238071,-150.0,0.00010364,2]
[361209389,1747342238081,-150.0,0.00010368,2]
[361209391,1747342238090,-150.0,0.00010382,2]
[361209393,1747342238100,-150.0,0.00010391,2]
[361209396,1747342238110,-150.0,0.000104,2]
[361209397,1747342238119,-150.0,0.00010403,2]
[361209400,1747342238129,-150.0,0.00010419,2]
[361209402,1747342238139,-150.0,0.00010437,2]
[361209404,1747342238148,-150.0,0.00010437,2]
[361209406,1747342238157,-150.0,0.00010437,2]
[361209408,1747342238167,-150.0,0.00010437,2]
[361209410,1747342238176,-150.0,0.00010437,2]
[361209412,1747342238185,-150.0,0.00010455,2]
[361209414,1747342238194,-150.0,0.00010471,2]
[361209416,1747342238203,-150.0,0.00010474,2]
[361209418,1747342238213,-150.0,0.00010483,2]
[361209419,1747342238226,-1736.8,0.00010489,2]
[361209422,1747342238235,-2878.69,0.00010489,2]
[361209423,1747342238244,-1781.83,0.00010489,2]
[361209425,1747342238253,-150.0,0.00010492,2]
[361209428,1747342238263,-150.0,0.00010506,2]
[361209429,1747342238272,-150.0,0.0001051,2]
[361209432,1747342238282,-150.0,0.00010515,2]
[361209433,1747342238292,-150.0,0.00010529,2]
[361209436,1747342238302,-150.0,0.00010529,2]
[361209437,1747342238311,-150.0,0.0001054,2]
[361209439,1747342238320,-150.0,0.00010547,2]
[361209442,1747342238329,-150.0,0.00010565,2]
[361209444,1747342238339,-150.0,0.00010574,2]
[361209446,1747342238348,-150.0,0.00010574,2]
[361209448,1747342238357,-150.0,0.00010583,2]
[361209449,1747342238366,-150.0,0.00010594,2]
[361209451,1747342238376,-150.0,0.00010602,2]
[361209453,1747342238385,-150.0,0.00010609,2]
[361209455,1747342238395,-150.0,0.0001062,2]
[361209457,1747342238404,-150.0,0.0001062,2]
[361209459,1747342238414,-150.0,0.00010638,2]
[361209461,1747342238423,-150.0,0.00010643,2]
[361209463,1747342238432,-150.0,0.00010657,2]
[361209465,1747342238442,-150.0,0.00010666,2]
[361209468,1747342238451,-150.0,0.00010672,2]
[361209470,1747342238461,-150.0,0.00010675,2]
[361209472,1747342238470,-150.0,0.00010677,2]
[361209474,1747342238480,-150.0,0.00010693,2]
[361209476,1747342238490,-150.0,0.00010712,2]
[361209478,1747342238499,-150.0,0.00010712,2]
[361209480,1747342238509,-150.0,0.00010712,2]
[361209482,1747342238518,-150.0,0.00010712,2]
[361209484,1747342238527,-165.39,0.00010716,2]
[361209486,1747342238536,-702.84,0.00010716,2]
[361209488,1747342238546,-150.99,0.00010716,2]
[361209490,1747342238555,-1094.17,0.00010716,2]
[361209492,1747342238564,-150.99,0.00010716,2]
[361209494,1747342238574,-9999.99,0.00010716,2]
[361209496,1747342238583,-150.0,0.0001073,2]
[361209498,1747342238592,-150.0,0.00010746,2]
[361209500,1747342238601,-150.0,0.00010748,2]
[361209502,1747342238610,-150.0,0.00010751,2]
[361209504,1747342238620,-150.0,0.00010757,2]
[361209506,1747342238629,-150.0,0.00010767,2]
[361209508,1747342238638,-150.0,0.0001078,2]
[361209510,1747342238647,-150.0,0.00010785,2]
[361209511,1747342238656,-999.99,0.000108,2]
[361209513,1747342238666,-1407.42,0.000108,2]
[361209515,1747342238675,-276.79,0.000108,2]
[361209518,1747342238684,-150.0,0.00010803,2]
[361209519,1747342238694,-150.0,0.00010803,2]
[361209520,1747342238704,-150.0,0.00010815,2]
[361209521,1747342238713,-150.0,0.00010822,2]
[361209522,1747342238722,-150.0,0.00010829,2]
[361209523,1747342238731,-150.0,0.0001084,2]
[361209524,1747342238740,-150.0,0.00010849,2]
[361209525,1747342238750,-150.0,0.00010849,2]
[361209526,1747342238760,-150.0,0.00010858,2]
[361209527,1747342238769,-1000.0,0.00010865,2]
[361209528,1747342238778,-150.0,0.00010876,2]
[361209529,1747342238787,-150.0,0.00010883,2]
[361209530,1747342238797,-150.0,0.00010895,2]
[361209531,1747342238806,-150.0,0.00010895,2]
[361209532,1747342238816,-1813.68145216,0.000109,2]
[361209535,1747342238839,-1881.79748,0.000109,2]
[361209642,1747342239827,-244.71656784,0.000109,2]
[361209644,1747342239837,-317.6139,0.000109,2]
[361209646,1747342239847,-270.645,0.000109,2]
[361209648,1747342239857,-8.6417027,0.000109,2]
[361209694,1747342243043,-218.1292973,0.000109,2]
[361209695,1747342243053,-517.37605262,0.000109,2]
[361209696,1747342243063,-4478.89,0.000109,2]
[361209697,1747342243073,-207.262,0.000109,2]
[361209698,1747342243082,-274.55733264,0.000109,2]
[361209699,1747342243091,-750.93533326,0.000109,2]
[361209700,1747342243100,-196.22689545,0.000109,2]
[361209701,1747342243109,-218.36708554,0.000109,2]
[361209702,1747342243117,-171.5450196,0.000109,2]
[361209703,1747342243126,-616.0,0.000109,2]
[361209704,1747342243134,-150.0,0.00010908,2]
[361209705,1747342243143,-150.0,0.00010913,2]
[361209706,1747342243153,-200.0,0.00010914,2]
[361209707,1747342243162,-200.0,0.00010914,2]
[361209708,1747342243170,-200.0,0.00010914,2]
[361209709,1747342243180,-250.0,0.00010914,2]
[361209710,1747342243189,-150.0,0.00010918,2]
[361209711,1747342243197,-150.0,0.00010931,2]
[361209712,1747342243207,-150.0,0.00010941,2]
[361209713,1747342243217,-150.0,0.0001095,2]
[361209714,1747342243228,-150.0,0.00010952,2]
[361209715,1747342243237,-500.0,0.00010959,2]
[361209716,1747342243247,-2000.0,0.00010959,2]
[361209717,1747342243256,-500.0,0.00010959,2]
[361209718,1747342243266,-200.0,0.00010959,2]
[361209719,1747342243276,-200.81,0.00010959,2]
[361209720,1747342243286,-150.0,0.00010959,2]
[361209721,1747342243296,-150.0,0.00010968,2]
[361209722,1747342243307,-500.0,0.00010973,2]
[361209723,1747342243316,-500.0,0.00010973,2]
[361209724,1747342243326,-520.54168207,0.00010973,2]
[361209725,1747342243336,-505.279035,0.00010973,2]
[361209726,1747342243345,-500.0,0.00010973,2]
[361209727,1747342243355,-500.0,0.00010973,2]
[361209728,1747342243365,-500.0,0.00010973,2]
[361209729,1747342243374,-500.0,0.00010973,2]
[361209730,1747342243384,-500.0,0.00010973,2]
[361209731,1747342243394,-500.0,0.00010973,2]
[361209732,1747342243403,-461.48676589,0.00010973,2]
[361209733,1747342243412,-500.0,0.00010973,2]
[361209734,1747342243422,-500.0,0.00010973,2]
[361209735,1747342243432,-287.89019146,0.00010986,2]
[361209736,1747342243442,-199.70474699,0.00010986,2]
[361209737,1747342243451,-273.5083202,0.00010986,2]
[361209738,1747342243461,-298.13549662,0.00010986,2]
[361209739,1747342243471,-159.63136028,0.00010986,2]
[361209740,1747342243480,-175.22506965,0.00010986,2]
[361209741,1747342243490,-215.02239339,0.00010986,2]
[361209743,1747342243499,-9699.51063739,0.00010989,2]
[361209744,1747342243511,-10807.59414894,0.0001099,2]
[361209745,1747342243520,-521.95187316,0.00010999,2]
[361209746,1747342243531,-214.44119043,0.00010999,2]
[361209747,1747342243542,-260.05410194,0.00010999,2]
[361209748,1747342243556,-312.89326676,0.00010999,2]
[361209749,1747342243566,-302.98793059,0.00010999,2]
[361209750,1747342243576,-500.0,0.00010999,2]
[361209751,1747342243585,-425.87031873,0.00010999,2]
[361209752,1747342243595,-500.0,0.00010999,2]
[361209753,1747342243604,-500.0,0.00010999,2]
[361209754,1747342243614,-500.0,0.00010999,2]
[361209755,1747342243623,-500.0,0.00010999,2]
[361209756,1747342243633,-500.0,0.00010999,2]
[361209757,1747342243643,-500.0,0.00010999,2]
[361209758,1747342243652,-500.0,0.00010999,2]
[361209759,1747342243662,-500.0,0.00010999,2]
[361209760,1747342243671,-500.0,0.00010999,2]
[361209761,1747342243681,-361.91354741,0.00010999,2]
[361209762,1747342243691,-500.0,0.00010999,2]
[361209763,1747342243700,-500.0,0.00010999,2]
[361209764,1747342243710,-300.00609993,0.00010999,2]
[361209765,1747342243720,-300.0,0.00010999,2]
[361209766,1747342243729,-300.0,0.00010999,2]
[361209767,1747342243739,-857.6563436,0.00011,2]
[361209768,1747342243748,-1028289.51335683,0.00011,2]
[361209769,1747342243758,-3469194.83932074,0.00011,2]
[361209770,1747342243768,-313.71876441,0.00011,2]
[361209771,1747342243778,-1000.0,0.00011,2]
[361209772,1747342243788,-1000.0,0.00011,2]
[361209773,1747342243798,-1000.0,0.00011,2]
[361209774,1747342243808,-1000.0,0.00011,2]
[361209775,1747342243818,-1000.0,0.00011,2]
[361209776,1747342243828,-1000.0,0.00011,2]
[361209777,1747342243839,-1000.0,0.00011,2]
[361209778,1747342243849,-1000.0,0.00011,2]
[361209779,1747342243861,-1000.0,0.00011,2]
[361209780,1747342243871,-1000.0,0.00011,2]
[361209781,1747342243880,-1000.0,0.00011,2]
[361209782,1747342243890,-1000.0,0.00011,2]
[361209783,1747342243901,-1000.0,0.00011,2]
[361209784,1747342243911,-1000.0,0.00011,2]
[361209785,1747342243921,-1000.0,0.00011,2]
[361209786,1747342243931,-1000.0,0.00011,2]
[361209787,1747342243940,-1000.0,0.00011,2]
[361209788,1747342243950,-1000.0,0.00011,2]
[361209789,1747342243960,-1000.0,0.00011,2]
[361209790,1747342243970,-1000.0,0.00011,2]
[361209791,1747342243980,-1000.0,0.00011,2]
[361209792,1747342243989,-1000.0,0.00011,2]
[361209793,1747342243999,-1000.0,0.00011,2]
[361209794,1747342244009,-1000.0,0.00011,2]
[361209795,1747342244019,-1000.0,0.00011,2]
[361209796,1747342244029,-348.86241904,0.00011,2]
[361209797,1747342244038,-1576414.21500442,0.00011,2]
[361209798,1747342244047,-208.40589949,0.00011,2]
[361209799,1747342244057,-200.0,0.00011,2]
[361209800,1747342244066,-40142.8051717,0.00011043,2]
[361209801,1747342244076,-172459.87958557,0.00011099,2]
[361209802,1747342244085,-210.44,0.00011102,2]
[361209803,1747342244095,-200.0,0.0001111,2]
[361209804,1747342244104,-274.55733263,0.00011122,2]
[361209805,1747342244114,-793.08,0.00011131,2]
[361209806,1747342244124,-255.0,0.00011132,2]
[361209807,1747342244133,-300.0,0.00011134,2]
[361209808,1747342244143,-420.0,0.00011139,2]
[361209809,1747342244153,-1680.0,0.00011141,2]
[361209810,1747342244162,-250.0,0.0001115,2]
[361209811,1747342244172,-210.44,0.00011158,2]
[361209812,1747342244182,-4000.0,0.00011233,2]
[361209813,1747342244191,-517.37605262,0.00011233,2]
[361209814,1747342244201,-528.57,0.00011254,2]
[361209815,1747342244210,-1881.94513181,0.00011274,2]
[361209816,1747342244223,-1881.94513181,0.00011274,2]
[361209817,1747342244233,-825.36433336,0.00011317,2]
[361209818,1747342244243,-274.55733263,0.00011344,2]
[361209819,1747342244253,-165.39,0.00011347,2]
[361209820,1747342244264,-218.36708553,0.000114,2]
[361209821,1747342244273,-2751.0,0.00011507,2]
[361209822,1747342244283,-500.0,0.00011507,2]
[361209823,1747342244293,-248.52116044,0.00011507,2]
[361209824,1747342244303,-150.0,0.00011507,2]
[361209825,1747342244313,-150.0,0.00011507,2]
[361209826,1747342244322,-150.0,0.00011507,2]
[361209827,1747342244332,-500.0,0.00011507,2]
[361209828,1747342244342,-500.0,0.00011507,2]
[361209829,1747342244351,-206.90511022,0.00011507,2]
[361209830,1747342244361,-500.0,0.00011507,2]
[361209831,1747342244371,-500.0,0.00011507,2]
[361209832,1747342244381,-430.0,0.00011507,2]
[361209833,1747342244391,-157.15081086,0.00011507,2]
[361209834,1747342244400,-529.41697482,0.00011521,2]
[361209835,1747342244409,-500.0,0.00011521,2]
[361209836,1747342244419,-1002.37137733,0.00011521,2]
[361209837,1747342244428,-511.64314303,0.00011521,2]
[361209838,1747342244437,-500.0,0.00011521,2]
[361209839,1747342244447,-500.0,0.00011521,2]
[361209840,1747342244456,-500.0,0.00011521,2]
[361209841,1747342244466,-501.92231379,0.00011521,2]
[361209842,1747342244475,-500.0,0.00011521,2]
[361209843,1747342244485,-773.40546655,0.00011521,2]
[361209844,1747342244495,-505.5437678,0.00011534,2]
[361209845,1747342244504,-150.0,0.00011534,2]
[361209846,1747342244513,-150.0,0.00011534,2]
[361209847,1747342244523,-150.0,0.00011534,2]
[361209848,1747342244532,-500.0,0.00011534,2]
[361209849,1747342244541,-500.0,0.00011534,2]
[361209850,1747342244550,-500.0,0.00011534,2]
[361209851,1747342244559,-500.0,0.00011534,2]
[361209852,1747342244569,-430.0,0.00011534,2]
[361209853,1747342244578,-150.0,0.00011562,2]
[361209854,1747342244587,-150.0,0.00011562,2]
[361209855,1747342244596,-150.0,0.00011562,2]
[361209856,1747342244605,-355.22945208,0.00011562,2]
[361209857,1747342244614,-500.0,0.00011562,2]
[361209858,1747342244623,-500.0,0.00011562,2]
[361209859,1747342244632,-500.0,0.00011562,2]
[361209860,1747342244643,-430.0,0.00011562,2]
[361209861,1747342244652,-517.37605262,0.00011567,2]
[361209862,1747342244661,-274.55733263,0.00011567,2]